fUST/lending_fUST_20240925
["ID","MTS","AMOUNT","RATE_DAILY","PERIOD"]
[339095059,1727241050330,-549.19,0.00016712,2]
[339095060,1727241050339,-500.0,0.00016712,2]
[339095061,1727241050348,-500.0,0.00016712,2]
[339095062,1727241050358,-500.0,0.00016712,2]
[339095063,1727241050368,-151.0,0.00016712,2]
[339095064,1727241050378,-151.0,0.00016712,2]
[339095065,1727241050387,-500.0,0.00016712,2]
[339095066,1727241050397,-151.0,0.00016712,2]
[339095067,1727241050406,-500.0,0.00016712,2]
[339095068,1727241050415,-500.0,0.00016712,2]
[339095069,1727241050425,-500.0,0.00016712,2]
[339095070,1727241050434,-500.0,0.00016712,2]
[339095071,1727241050443,-500.0,0.00016712,2]
[339095072,1727241050452,-378.24356728,0.00016712,2]
[339095073,1727241050462,-500.0,0.00016712,2]
[339095074,1727241050471,-500.0,0.00016712,2]
[339095075,1727241050481,-1092.36,0.00016712,2]
[339095076,1727241050490,-155.709969,0.00016712,2]
[339095077,1727241050499,-500.0,0.00016712,2]
[339095078,1727241050508,-500.0,0.00016712,2]
[339095079,1727241050518,-500.0,0.00016712,2]
[339095080,1727241050527,-312.124279,0.00016712,2]
[339095081,1727241050536,-312.124279,0.00016712,2]
[339095082,1727241050546,-500.0,0.00016712,2]
[339095083,1727241050555,-500.0,0.00016712,2]
[339095084,1727241050564,-500.0,0.00016712,2]
[339095085,1727241050573,-500.0,0.00016712,2]
[339095086,1727241050582,-312.124279,0.00016712,2]
[339095087,1727241050592,-312.124279,0.00016712,2]
[339095088,1727241050601,-500.0,0.00016712,2]
[339095089,1727241050610,-500.0,0.00016712,2]
[339095090,1727241050630,-500.0,0.00016712,2]
[339095091,1727241050639,-500.0,0.00016712,2]
[339095092,1727241050649,-500.0,0.00016712,2]
[339095093,1727241050658,-433.5,0.00016712,2]
[339095094,1727241050667,-715.1,0.00016712,2]
[339095095,1727241050677,-500.0,0.00016712,2]
[339095096,1727241050686,-517.88309722,0.00016712,2]
[339095097,1727241050695,-588.16,0.00016712,2]
[339095098,1727241050705,-326.800056,0.00016712,2]
[339095099,1727241050714,-326.800056,0.00016712,2]
[339095100,1727241050723,-500.0,0.00016712,2]
[339095101,1727241050732,-500.0,0.00016712,2]
[339095102,1727241050741,-326.800056,0.00016712,2]
[339095103,1727241050750,-1257.3,0.00016712,2]
[339095104,1727241050759,-500.0,0.00016712,2]
[339095105,1727241050769,-326.800056,0.00016712,2]
[339095106,1727241050778,-326.800056,0.00016712,2]
[339095107,1727241050787,-326.800056,0.00016712,2]
[339095108,1727241050796,-500.0,0.00016712,2]
[339095109,1727241050806,-500.0,0.00016712,2]
[339095110,1727241050815,-500.0,0.00016712,2]
[339095111,1727241050825,-500.0,0.00016712,2]
[339095112,1727241050834,-500.0,0.00016712,2]
[339095113,1727241050843,-500.0,0.00016712,2]
[339095114,1727241050853,-500.0,0.00016712,2]
[339095115,1727241050867,-500.0,0.00016712,2]
[339095116,1727241050876,-496.62666425,0.00016712,2]
[339095117,1727241050885,-500.0,0.00016712,2]
[339095118,1727241050894,-537.98,0.00016712,2]
[339095119,1727241050904,-500.0,0.00016712,2]
[339095120,1727241050913,-500.0,0.00016712,2]
[339095121,1727241050922,-500.0,0.00016712,2]
[339095122,1727241050932,-500.0,0.00016712,2]
[339095123,1727241050941,-500.0,0.00016712,2]
[339095124,1727241050950,-500.0,0.00016712,2]
[339095125,1727241050959,-476.21514682,0.00016712,2]
[339095126,1727241050969,-492.75859,0.00016712,2]
[339095127,1727241050978,-492.75859,0.00016712,2]
[339095128,1727241050988,-5236.22,0.00016712,2]
[339095129,1727241050997,-492.75859,0.00016712,2]
[339095130,1727241051007,-165.25423971,0.00016712,2]
[339095131,1727241051016,-500.0,0.00016712,2]
[339095132,1727241051026,-590.22371879,0.00016712,2]
[339095133,1727241051036,-502.49782294,0.00016712,2]
[339095134,1727241051045,-500.0,0.00016712,2]
[339095135,1727241051055,-500.0,0.00016712,2]
[339095136,1727241051064,-225.01666888,0.00016712,2]
[339095137,1727241051073,-525.76818392,0.00016712,2]
[339095138,1727241051083,-492.75859,0.00016712,2]
[339095139,1727241051092,-492.75859,0.00016712,2]
[339095140,1727241051101,-492.75859,0.00016712,2]
[339095141,1727241051114,-500.0,0.00016712,2]
[339095142,1727241051123,-569.79,0.00016712,2]
[339095143,1727241051132,-500.0,0.00016712,2]
[339095144,1727241051142,-500.0,0.00016712,2]
[339095145,1727241051151,-364.69197004,0.00016712,2]
[339095146,1727241051161,-500.0,0.00016712,2]
[339095147,1727241051171,-500.0,0.00016712,2]
[339095148,1727241051180,-500.0,0.00016712,2]
[339095149,1727241051190,-736.995165,0.00016712,2]
[339095150,1727241051200,-736.995165,0.00016712,2]
[339095151,1727241051209,-803.04,0.00016712,2]
[339095152,1727241051219,-736.995165,0.00016712,2]
[339095153,1727241051229,-500.0,0.00016712,2]
[339095154,1727241051238,-736.995165,0.00016712,2]
[339095155,1727241051247,-500.0,0.00016712,2]
[339095156,1727241051256,-736.995165,0.00016712,2]
[339095157,1727241051266,-736.995165,0.00016712,2]
[339095158,1727241051275,-846.34,0.00016712,2]
[339095159,1727241051284,-703.19,0.00016712,2]
[339095160,1727241051293,-509.2143858,0.00016712,2]
[339095161,1727241051302,-500.0,0.00016712,2]
[339095162,1727241051312,-500.0,0.00016712,2]
[339095163,1727241051321,-238.00910051,0.00016712,2]
[339095164,1727241051330,-1115.13,0.00016712,2]
[339095165,1727241051339,-705.37,0.00016712,2]
[339095166,1727241051348,-500.0,0.00016712,2]
[339095167,1727241051357,-151.0,0.00016712,2]
[339095168,1727241051368,-151.0,0.00016712,2]
[339095169,1727241051377,-151.0,0.00016712,2]
[339095170,1727241051386,-500.0,0.00016712,2]
[339095171,1727241051395,-500.0,0.00016712,2]
[339095172,1727241051405,-686.734596,0.00016712,2]
[339095173,1727241051415,-686.734596,0.00016712,2]
[339095174,1727241051426,-500.0,0.00016712,2]
[339095175,1727241051437,-686.734596,0.00016712,2]
[339095176,1727241051446,-151.0,0.00016712,2]
[339095177,1727241051461,-151.0,0.00016712,2]
[339095178,1727241051470,-151.0,0.00016712,2]
[339095179,1727241051480,-686.734596,0.00016712,2]
[339095180,1727241051489,-686.734596,0.00016712,2]
[339095181,1727241051498,-686.734596,0.00016712,2]
[339095182,1727241051507,-500.0,0.00016712,2]
[339095183,1727241051517,-151.0,0.00016712,2]
[339095184,1727241051527,-151.0,0.00016712,2]
[339095185,1727241051536,-500.0,0.00016712,2]
[339095186,1727241051545,-151.0,0.00016712,2]
[339095187,1727241051554,-500.0,0.00016712,2]
[339095188,1727241051564,-574.16,0.00016712,2]
[339095189,1727241051572,-500.0,0.00016712,2]
[339095190,1727241051582,-500.0,0.00016712,2]
[339095191,1727241051591,-511.19640966,0.00016712,2]
[339095192,1727241051600,-500.0,0.00016712,2]
[339095193,1727241051611,-500.0,0.00016712,2]
[339095194,1727241051620,-500.0,0.00016712,2]
[339095195,1727241051630,-607.24646916,0.00016712,2]
[339095196,1727241051639,-664.81,0.00016712,2]
[339095197,1727241051649,-500.0,0.00016712,2]
[339095198,1727241051659,-500.0,0.00016712,2]
[339095199,1727241051668,-252.55194096,0.00016712,2]
[339095200,1727241051678,-500.0,0.00016712,2]
[339095201,1727241051687,-500.0,0.00016712,2]
[339095202,1727241051698,-1043.016521,0.00016712,2]
[339095203,1727241051755,-500.0,0.00016712,2]
[339095204,1727241051765,-289.329677,0.00016712,2]
[339095205,1727241051774,-1043.016521,0.00016712,2]
[339095206,1727241051783,-289.329677,0.00016712,2]
[339095207,1727241051792,-289.329677,0.00016712,2]
[339095208,1727241051801,-500.0,0.00016712,2]
[339095209,1727241051810,-500.0,0.00016712,2]
[339095210,1727241051819,-1661.69,0.00016712,2]
[339095211,1727241051828,-500.0,0.00016712,2]
[339095212,1727241051837,-289.329677,0.00016712,2]
[339095213,1727241051848,-1043.016521,0.00016712,2]
[339095214,1727241051861,-1043.016521,0.00016712,2]
[339095215,1727241051870,-289.329677,0.00016712,2]
[339095216,1727241051879,-289.329677,0.00016712,2]
[339095217,1727241051888,-1000.0,0.00016712,2]
[339095218,1727241051897,-500.0,0.00016712,2]
[339095219,1727241051906,-514.110546,0.00016712,2]
[339095220,1727241051915,-514.110546,0.00016712,2]
[339095221,1727241051924,-514.110546,0.00016712,2]
[339095222,1727241051933,-514.110546,0.00016712,2]
[339095223,1727241051942,-514.110546,0.00016712,2]
[339095224,1727241051951,-514.110546,0.00016712,2]
[339095225,1727241051960,-810.55,0.00016712,2]
[339095226,1727241051970,-519.75877616,0.00016712,2]
[339095227,1727241051979,-500.0,0.00016712,2]
[339095228,1727241051988,-500.0,0.00016712,2]
[339095229,1727241051997,-500.0,0.00016712,2]
[339095230,1727241052006,-312.4307038,0.00016712,2]
[339095231,1727241052015,-310.0,0.00016712,2]
[339095232,1727241052024,-310.0,0.00016712,2]
[339095233,1727241052033,-181.406541,0.00016712,2]
[339095234,1727241052042,-755.66,0.00016712,2]
[339095235,1727241052051,-500.0,0.00016712,2]
[339095236,1727241052060,-1063.650081,0.00016712,2]
[339095237,1727241052069,-1063.650081,0.00016712,2]
[339095238,1727241052079,-1063.650081,0.00016712,2]
[339095239,1727241052088,-500.0,0.00016712,2]
[339095240,1727241052097,-1063.650081,0.00016712,2]
[339095241,1727241052106,-1063.650081,0.00016712,2]
[339095242,1727241052117,-1063.650081,0.00016712,2]
[339095243,1727241052126,-500.0,0.00016712,2]
[339095244,1727241052135,-503.42271462,0.00016712,2]
[339095245,1727241052144,-1827.833264,0.00016712,2]
[339095246,1727241052153,-1827.833264,0.00016712,2]
[339095247,1727241052162,-1827.833264,0.00016712,2]
[339095248,1727241052171,-500.0,0.00016712,2]
[339095249,1727241052180,-1827.833264,0.00016712,2]
[339095250,1727241052189,-1827.833264,0.00016712,2]
[339095251,1727241052198,-1827.833264,0.00016712,2]
[339095252,1727241052207,-500.0,0.00016712,2]
[339095253,1727241052216,-500.0,0.00016712,2]
[339095254,1727241052225,-371.74973713,0.00016712,2]
[339095255,1727241052234,-520.79936084,0.00016712,2]
[339095256,1727241052243,-151.0,0.00016712,2]
[339095257,1727241052252,-442.17662661,0.00016712,2]
[339095258,1727241052262,-151.0,0.00016712,2]
[339095259,1727241052271,-151.0,0.00016712,2]
[339095260,1727241052280,-500.0,0.00016712,2]
[339095261,1727241052289,-503.8260819,0.00016712,2]
[339095262,1727241052297,-500.0,0.00016712,2]
[339095263,1727241052307,-500.0,0.00016712,2]
[339095264,1727241052316,-500.0,0.00016712,2]
[339095265,1727241052325,-500.0,0.00016712,2]
[339095266,1727241052334,-500.0,0.00016712,2]
[339095267,1727241052343,-1151.51,0.00016712,2]
[339095268,1727241052352,-240.28932179,0.00016712,2]
[339095269,1727241052362,-500.0,0.00016712,2]
[339095270,1727241052372,-500.0,0.00016712,2]
[339095271,1727241052381,-500.0,0.00016712,2]
[339095272,1727241052390,-500.0,0.00016712,2]
[339095273,1727241052399,-504.48763738,0.00016712,2]
[339095274,1727241052408,-666.99,0.00016712,2]
[339095275,1727241052417,-500.0,0.00016712,2]
[339095276,1727241052426,-500.0,0.00016712,2]
[339095277,1727241052435,-502.08425074,0.00016712,2]
[339095278,1727241052444,-500.0,0.00016712,2]
[339095279,1727241052452,-500.0,0.00016712,2]
[339095280,1727241052461,-500.0,0.00016712,2]
[339095281,1727241052470,-1058.31,0.00016712,2]
[339095282,1727241052480,-500.0,0.00016712,2]
[339095283,1727241052489,-552.31,0.00016712,2]
[339095284,1727241052498,-500.0,0.00016712,2]
[339095285,1727241052507,-500.0,0.00016712,2]
[339095286,1727241052517,-500.0,0.00016712,2]
[339095287,1727241052526,-500.0,0.00016712,2]
[339095288,1727241052535,-500.0,0.00016712,2]
[339095289,1727241052544,-664.23,0.00016712,2]
[339095290,1727241052553,-825.67,0.00016712,2]
[339095291,1727241052562,-516.19653735,0.00016712,2]
[339095292,1727241052572,-500.0,0.00016712,2]
[339095293,1727241052581,-500.0,0.00016712,2]
[339095294,1727241052590,-4414.59,0.00016712,2]
[339095295,1727241052599,-583.03,0.00016712,2]
[339095296,1727241052608,-500.0,0.00016712,2]
[339095297,1727241052618,-500.0,0.00016712,2]
[339095298,1727241052627,-1062.79595,0.00016712,2]
[339095299,1727241052636,-1062.79595,0.00016712,2]
[339095300,1727241052645,-5948.06446,0.00016712,2]
[339095301,1727241052654,-5948.06446,0.00016712,2]
[339095302,1727241052663,-5948.06446,0.00016712,2]
[339095303,1727241052672,-570.63,0.00016712,2]
[339095304,1727241052681,-500.0,0.00016712,2]
[339095305,1727241052690,-5948.06446,0.00016712,2]
[339095306,1727241052699,-1062.79595,0.00016712,2]
[339095307,1727241052708,-5948.06446,0.00016712,2]
[339095308,1727241052717,-1062.79595,0.00016712,2]
[339095309,1727241052726,-500.0,0.00016712,2]
[339095310,1727241052735,-5948.06446,0.00016712,2]
[339095311,1727241052744,-369.58526306,0.00016712,2]
[339095312,1727241052754,-683.586432,0.00016712,2]
[339095313,1727241052763,-683.586432,0.00016712,2]
[339095314,1727241052772,-683.586432,0.00016712,2]
[339095315,1727241052781,-646.44,0.00016712,2]
[339095316,1727241052790,-683.586432,0.00016712,2]
[339095317,1727241052800,-683.586432,0.00016712,2]
[339095318,1727241052809,-683.586432,0.00016712,2]
[339095319,1727241052818,-864.675461,0.00016712,2]
[339095320,1727241052827,-864.675461,0.00016712,2]
[339095321,1727241052837,-537.36,0.00016712,2]
[339095322,1727241052846,-864.675461,0.00016712,2]
[339095323,1727241052855,-864.675461,0.00016712,2]
[339095324,1727241052865,-500.0,0.00016712,2]
[339095325,1727241052874,-1386.44,0.00016712,2]
[339095326,1727241052883,-550.01433442,0.00016712,2]
[339095327,1727241052892,-500.0,0.00016712,2]
[339095328,1727241052901,-502.68361548,0.00016712,2]
[339095329,1727241052910,-151.0,0.00016712,2]
[339095330,1727241052919,-151.0,0.00016712,2]
[339095331,1727241052928,-500.0,0.00016712,2]
[339095332,1727241052937,-636.99925127,0.00016712,2]
[339095333,1727241052946,-500.0,0.00016712,2]
[339095334,1727241052955,-1227.653943,0.00016712,2]
[339095335,1727241052964,-1227.653943,0.00016712,2]
[339095336,1727241052974,-1227.653943,0.00016712,2]
[339095337,1727241052982,-500.0,0.00016712,2]
[339095338,1727241052991,-1227.653943,0.00016712,2]
[339095339,1727241053000,-1227.653943,0.00016712,2]
[339095340,1727241053009,-1227.653943,0.00016712,2]
[339095341,1727241053019,-500.0,0.00016712,2]
[339095342,1727241053028,-500.0,0.00016712,2]
[339095343,1727241053038,-151.0,0.00016712,2]
[339095344,1727241053047,-151.0,0.00016712,2]
[339095345,1727241053057,-500.0,0.00016712,2]
[339095346,1727241053066,-208.003114,0.00016712,2]
[339095347,1727241053076,-181.384676,0.00016712,2]
[339095348,1727241053085,-181.384676,0.00016712,2]
[339095349,1727241053095,-181.384676,0.00016712,2]
[339095350,1727241053104,-322.647176,0.00016712,2]
[339095351,1727241053115,-322.647176,0.00016712,2]
[339095352,1727241053124,-500.0,0.00016712,2]
[339095353,1727241053134,-500.0,0.00016712,2]
[339095354,1727241053143,-181.384676,0.00016712,2]
[339095355,1727241053153,-181.384676,0.00016712,2]
[339095356,1727241053162,-181.384676,0.00016712,2]
[339095357,1727241053172,-689.84,0.00016712,2]
[339095358,1727241053182,-322.647176,0.00016712,2]
[339095359,1727241053191,-322.647176,0.00016712,2]
[339095360,1727241053200,-500.0,0.00016712,2]
[339095361,1727241053212,-500.0,0.00016712,2]
[339095362,1727241053222,-308.30796,0.00016712,2]
[339095363,1727241053232,-308.30796,0.00016712,2]
[339095364,1727241053242,-499.766448,0.00016712,2]
[339095365,1727241053251,-499.766448,0.00016712,2]
[339095366,1727241053260,-500.0,0.00016712,2]
[339095367,1727241053270,-308.30796,0.00016712,2]
[339095368,1727241053280,-308.30796,0.00016712,2]
[339095369,1727241053289,-499.766448,0.00016712,2]
[339095370,1727241053299,-499.766448,0.00016712,2]
[339095371,1727241053308,-500.0,0.00016712,5]
[339095372,1727241053318,-500.0,0.00016712,2]
[339095373,1727241053327,-788.23,0.00016712,2]
[339095374,1727241053337,-500.0,0.00016712,2]
[339095375,1727241053346,-500.0,0.00016712,2]
[339095376,1727241053355,-500.0,0.00016712,2]
[339095377,1727241053365,-500.0,0.00016712,2]
[339095378,1727241053374,-500.0,0.00016712,2]
[339095379,1727241053384,-151.0,0.00016712,2]
[339095380,1727241053393,-151.0,0.00016712,2]
[339095381,1727241053402,-500.0,0.00016712,2]
[339095382,1727241053412,-151.0,0.00016712,2]
[339095383,1727241053421,-500.0,0.00016712,2]
[339095384,1727241053431,-500.0,0.00016712,2]
[339095385,1727241053440,-614.67,0.00016712,2]
[339095386,1727241053450,-2204.17,0.00016712,2]
[339095387,1727241053461,-500.0,0.00016712,2]
[339095388,1727241053470,-500.0,0.00016712,2]
[339095389,1727241053480,-712.95,0.00016712,2]
[339095390,1727241053490,-500.0,0.00016712,2]
[339095391,1727241053501,-500.0,0.00016712,2]
[339095392,1727241053511,-500.0,0.00016712,2]
[339095393,1727241053520,-500.0,0.00016712,2]
[339095394,1727241053531,-500.0,0.00016712,2]
[339095395,1727241053540,-500.0,0.00016712,2]
[339095396,1727241053549,-500.0,0.00016712,2]
[339095397,1727241053558,-500.0,0.00016712,2]
[339095398,1727241053568,-500.0,0.00016712,2]
[339095399,1727241053577,-500.0,0.00016712,2]
[339095400,1727241053586,-504.89882747,0.00016712,2]
[339095401,1727241053596,-500.0,0.00016712,2]
[339095402,1727241053605,-500.0,0.00016712,2]
[339095403,1727241053614,-500.0,0.00016712,2]
[339095404,1727241053623,-500.0,0.00016712,2]
[339095405,1727241053633,-493.002,0.00016712,2]
[339095406,1727241053643,-493.002,0.00016712,2]
[339095407,1727241053653,-493.002,0.00016712,2]
[339095408,1727241053663,-656.37,0.00016712,2]
[339095409,1727241053673,-500.0,0.00016712,2]
[339095410,1727241053683,-500.0,0.00016712,2]
[339095411,1727241053692,-493.002,0.00016712,2]
[339095412,1727241053701,-493.002,0.00016712,2]
[339095413,1727241053711,-493.002,0.00016712,2]
[339095414,1727241053720,-500.0,0.00016712,2]
[339095415,1727241053730,-500.0,0.00016712,2]
[339095416,1727241053739,-500.0,0.00016712,2]
[339095417,1727241053749,-875.7,0.00016712,2]
[339095418,1727241053758,-500.0,0.00016712,2]
[339095419,1727241053768,-500.0,0.00016712,2]
[339095420,1727241053777,-500.0,0.00016712,2]
[339095421,1727241053786,-584.72,0.00016712,2]
[339095422,1727241053795,-500.0,0.00016712,2]
[339095423,1727241053805,-500.0,0.00016712,2]
[339095424,1727241053815,-508.53290594,0.00016712,2]
[339095425,1727241053826,-500.0,0.00016712,2]
[339095426,1727241053835,-501.56298995,0.00016712,2]
[339095427,1727241053845,-500.0,0.00016712,2]
[339095428,1727241053855,-500.0,0.00016712,2]
[339095429,1727241053865,-500.0,0.00016712,2]
[339095430,1727241053874,-500.0,0.00016712,2]
[339095431,1727241053883,-772.275919,0.00016712,2]
[339095432,1727241053894,-772.275919,0.00016712,2]
[339095433,1727241053903,-772.275919,0.00016712,2]
[339095434,1727241053913,-531.082875,0.00016712,2]
[339095435,1727241053922,-695.04,0.00016712,2]
[339095436,1727241053932,-500.0,0.00016712,2]
[339095437,1727241053941,-772.275919,0.00016712,2]
[339095438,1727241053951,-772.275919,0.00016712,2]
[339095439,1727241053961,-772.275919,0.00016712,2]
[339095440,1727241053970,-500.0,0.00016712,2]
[339095441,1727241053980,-34462.56,0.00016712,2]
[339095442,1727241053989,-500.0,0.00016712,2]
[339095443,1727241054000,-500.0,0.00016712,2]
[339095444,1727241054010,-500.0,0.00016712,2]
[339095445,1727241054021,-550.25,0.00016712,2]
[339095446,1727241054033,-169.672405,0.00016712,2]
[339095447,1727241054045,-500.0,0.00016712,2]
[339095448,1727241054055,-169.672405,0.00016712,2]
[339095449,1727241054065,-169.672405,0.00016712,2]
[339095450,1727241054074,-500.0,0.00016712,2]
[339095451,1727241054085,-500.0,0.00016712,2]
[339095452,1727241054096,-804.439014,0.00016712,2]
[339095453,1727241054105,-169.672405,0.00016712,2]
[339095454,1727241054115,-500.0,0.00016712,2]
[339095455,1727241054125,-804.439014,0.00016712,2]
[339095456,1727241054134,-169.672405,0.00016712,2]
[339095457,1727241054143,-500.0,0.00016712,2]
[339095458,1727241054154,-804.439014,0.00016712,2]
[339095459,1727241054165,-169.672405,0.00016712,2]
[339095460,1727241054174,-500.0,0.00016712,2]
[339095461,1727241054183,-4804.72,0.00016712,2]
[339095462,1727241054193,-2003.910085,0.00016712,2]
[339095463,1727241054202,-2003.910085,0.00016712,2]
[339095464,1727241054212,-804.439014,0.00016712,2]
[339095465,1727241054224,-194.950734,0.00016712,2]
[339095466,1727241054234,-2003.910085,0.00016712,2]
[339095467,1727241054244,-804.439014,0.00016712,2]
[339095468,1727241054255,-194.950734,0.00016712,2]
[339095469,1727241054265,-804.439014,0.00016712,2]
[339095470,1727241054277,-194.950734,0.00016712,2]
[339095471,1727241054288,-500.0,0.00016712,2]
[339095472,1727241054298,-477.273364,0.00016712,2]
[339095473,1727241054308,-500.0,0.00016712,2]
[339095474,1727241054318,-477.273364,0.00016712,2]
[339095475,1727241054329,-477.273364,0.00016712,2]
[339095476,1727241054340,-247.15522,0.00016712,2]
[339095477,1727241054351,-500.0,0.00016712,2]
[339095478,1727241054363,-194.950734,0.00016712,2]
[339095479,1727241054382,-247.15522,0.00016712,2]
[339095480,1727241054392,-247.15522,0.00016712,2]
[339095481,1727241054401,-194.950734,0.00016712,2]
[339095482,1727241054410,-194.950734,0.00016712,2]
[339095483,1727241054419,-2003.910085,0.00016712,2]
[339095484,1727241054428,-500.0,0.00016712,2]
[339095485,1727241054437,-2003.910085,0.00016712,2]
[339095486,1727241054446,-2957.28,0.00016712,2]
[339095487,1727241054455,-2003.910085,0.00016712,2]
[339095488,1727241054464,-535.91,0.00016712,2]
[339095489,1727241054473,-636.52,0.00016712,2]
[339095490,1727241054482,-477.273364,0.00016712,2]
[339095491,1727241054491,-247.15522,0.00016712,2]
[339095492,1727241054501,-477.273364,0.00016712,2]
[339095493,1727241054510,-247.15522,0.00016712,2]
[339095494,1727241054522,-477.273364,0.00016712,2]
[339095495,1727241054531,-247.15522,0.00016712,2]
[339095496,1727241054540,-500.0,0.00016712,2]
[339095497,1727241054550,-3000.0,0.0001672,2]
[339095498,1727241054559,-3000.0,0.0001673,2]
[339095499,1727241054569,-3000.0,0.0001674,2]
[339095500,1727241054578,-3000.0,0.0001675,2]
[339095501,1727241054588,-3000.0,0.0001676,2]
[339095502,1727241054597,-3000.0,0.0001677,2]
[339095503,1727241054607,-1062.79595,0.0001677,2]
[339095504,1727241054631,-1062.79595,0.0001677,2]
[339095505,1727241054642,-864.675461,0.0001677,2]
[339095506,1727241054653,-864.675461,0.0001677,2]
[339095507,1727241054665,-151.0,0.0001677,2]
[339095508,1727241054674,-151.0,0.0001677,2]
[339095509,1727241054684,-322.647176,0.0001677,2]
[339095510,1727241054694,-322.647176,0.0001677,2]
[339095511,1727241054703,-308.30796,0.0001677,2]
[339095512,1727241054714,-499.766448,0.0001677,2]
[339095513,1727241054726,-308.30796,0.0001677,2]
[339095514,1727241054736,-499.766448,0.0001677,2]
[339095515,1727241054746,-500.0,0.00016773,2]
[339095516,1727241054756,-200.41179046,0.00016773,2]
[339095517,1727241054767,-500.0,0.00016773,2]
[339095518,1727241054776,-150.0,0.00016773,2]
[339095519,1727241054785,-3000.0,0.0001678,2]
[339095520,1727241054797,-3000.0,0.0001679,2]
[339095521,1727241054809,-153.0,0.000168,2]
[339095522,1727241054821,-3000.0,0.000168,2]
[339095523,1727241054832,-3000.0,0.0001681,2]
[339095524,1727241054841,-3000.0,0.0001682,2]
[339095525,1727241054852,-3000.0,0.0001683,2]
[339095526,1727241054862,-3000.0,0.0001684,2]
[339095527,1727241054871,-3000.0,0.0001685,2]
[339095528,1727241054880,-3000.0,0.0001686,2]
[339095529,1727241054890,-1827.833264,0.0001686,2]
[339095530,1727241054899,-1827.833264,0.0001686,2]
[339095531,1727241054908,-151.0,0.0001686,2]
[339095532,1727241054917,-5948.06446,0.0001686,2]
[339095533,1727241054927,-5948.06446,0.0001686,2]
[339095534,1727241054937,-683.586432,0.0001686,2]
[339095535,1727241054946,-683.586432,0.0001686,2]
[339095536,1727241054956,-1227.653943,0.0001686,2]
[339095537,1727241054965,-1227.653943,0.0001686,2]
[339095538,1727241054977,-181.384676,0.0001686,2]
[339095539,1727241054986,-181.384676,0.0001686,2]
[339095540,1727241054996,-194.950734,0.0001686,2]
[339095541,1727241055007,-477.273364,0.0001686,2]
[339095542,1727241055018,-194.950734,0.0001686,2]
[339095543,1727241055028,-477.273364,0.0001686,2]
[339095544,1727241055037,-420.0,0.00016863,2]
[339095545,1727241055047,-3000.0,0.0001687,2]
[339095546,1727241055056,-3000.0,0.0001688,2]
[339095547,1727241055065,-3000.0,0.0001689,2]
[339095548,1727241055075,-3000.0,0.000169,2]
[339095549,1727241055085,-608.0,0.000169,2]
[339095550,1727241055093,-3000.0,0.0001691,2]
[339095551,1727241055103,-3000.0,0.0001692,2]
[339095552,1727241055112,-1000.0,0.00016921,2]
[339095553,1727241055122,-1000.0,0.00016921,2]
[339095554,1727241055132,-1000.0,0.00016921,2]
[339095555,1727241055142,-501.02642262,0.00016921,2]
[339095556,1727241055152,-1000.0,0.00016921,2]
[339095557,1727241055161,-151.0,0.00016921,2]
[339095558,1727241055170,-514.110546,0.00016921,2]